bitfinex/quotes_BTCUSD_20250421
["timestamp","ask_amount","ask_price","bid_price","bid_amount"]
[1745214911046,0.62893367,87364.0,87363.0,0.00013446]
[1745214911366,0.64347452,87364.0,87363.0,0.00013446]
[1745214912186,0.53113367,87364.0,87363.0,0.00113446]
[1745214917919,0.53113367,87364.0,87363.0,0.13405446]
[1745214918153,0.52278237,87364.0,87363.0,0.13405446]
[1745214921321,0.11944791,87364.0,87363.0,0.13405446]
[1745214929743,0.16804791,87364.0,87363.0,0.13405446]
[1745214930808,0.16804791,87364.0,87363.0,0.13305446]
[1745214931005,0.18939217,87364.0,87363.0,0.13305446]
[1745214932196,0.25373302,87364.0,87363.0,0.00013446]
[1745214932843,0.26440515,87364.0,87363.0,0.00013446]
[1745214933055,0.66773961,87364.0,87363.0,0.00013446]
[1745214933294,0.67574352,87364.0,87363.0,0.00013446]
[1745214933922,0.70933936,87364.0,87363.0,0.00013446]
[1745214936921,0.67732297,87364.0,87363.0,0.00013446]
[1745214937042,0.66931906,87364.0,87363.0,0.00013446]
[1745214939293,0.73719251,87364.0,87363.0,0.00013446]
[1745214939766,0.66931906,87364.0,87363.0,0.00013446]
[1745214940140,0.10824085,87357.0,87356.0,0.12816]
[1745214940345,0.63088876,87357.0,87356.0,0.12816]
[1745214941222,0.67095185,87357.0,87356.0,0.12816]
[1745214941870,0.67095185,87357.0,87326.0,0.0008454]
[1745214941871,0.10724085,87356.0,87342.0,0.12356]
[1745214942070,0.05974085,87344.0,87341.0,0.12356]
[1745214942232,0.01454085,87342.0,87341.0,0.12356]
[1745214942435,0.1660361,87342.0,87341.0,0.12356]
[1745214943721,0.1553534,87342.0,87341.0,0.12356]
[1745214944895,0.53718876,87342.0,87341.0,0.12356]
[1745214945438,0.54558659,87342.0,87341.0,0.12356]
[1745214950680,0.56695123,87342.0,87341.0,0.12356]
[1745214951022,0.54558659,87342.0,87341.0,0.12356]
[1745214951436,0.56695123,87342.0,87341.0,0.12356]
[1745214952230,0.54558659,87342.0,87341.0,0.12356]
[1745214952412,0.56695123,87342.0,87341.0,0.12356]
[1745214952760,0.54558659,87342.0,87341.0,0.12356]
[1745214953327,0.56695123,87342.0,87341.0,0.12356]
[1745214955899,0.55241038,87342.0,87341.0,0.12356]
[1745214958721,0.56309308,87342.0,87341.0,0.12356]
[1745214960978,0.55469525,87342.0,87341.0,0.12456]
[1745214961693,0.53333061,87342.0,87341.0,0.12456]
[1745214961851,0.52264791,87342.0,87341.0,0.12456]
[1745214962194,0.4032,87342.0,87341.0,0.46456]
[1745214962445,0.0106827,87348.0,87342.0,0.0163]
[1745214962850,0.01454085,87359.0,87342.0,0.0163]
[1745214963028,0.11944791,87358.0,87342.0,0.0163]
[1745214963232,0.0213878,87357.0,87342.0,0.0163]
[1745214963409,0.11944791,87356.0,87342.0,0.3563]
[1745214963583,0.0213878,87355.0,87342.0,0.3563]
[1745214963801,0.11944791,87354.0,87342.0,0.3563]
[1745214963980,0.0320705,87353.0,87342.0,0.34]
[1745214964182,0.0320705,87353.0,87341.0,0.15850748]
[1745214964183,0.06164085,87351.0,87341.0,0.12456]
[1745214964378,0.14083571,87350.0,87341.0,0.12456]
[1745214964784,0.11944791,87350.0,87341.0,0.12456]
[1745214965234,0.02137592,87349.0,87341.0,0.12456]
[1745214965458,0.11944791,87348.0,87341.0,0.12456]
[1745214965821,0.02137592,87347.0,87341.0,0.12456]
[1745214966024,0.11944791,87346.0,87341.0,0.12456]
[1745214966265,0.02137592,87345.0,87341.0,0.12456]
[1745214966627,0.11944791,87344.0,87341.0,0.12456]
[1745214968150,0.11244791,87344.0,87341.0,0.12456]
[1745214970784,0.02137154,87349.0,87346.0,0.01144872]
[1745214970974,0.11944791,87348.0,87346.0,0.01144872]
[1745214973546,0.01068488,87347.0,87346.0,0.01144872]
[1745214973745,0.13013279,87347.0,87346.0,0.01144872]
[1745214974944,0.11944791,87347.0,87346.0,0.01144872]
[1745214975253,0.14081945,87347.0,87346.0,0.01144872]
[1745214975868,0.13381945,87347.0,87346.0,0.01144872]
[1745214977374,0.2436603,87347.0,87346.0,0.01144872]
[1745214977963,0.25434518,87347.0,87346.0,0.01144872]
[1745214979889,0.23980433,87347.0,87346.0,0.01144872]
[1745214980521,0.21843279,87347.0,87346.0,0.01144872]
[1745214980885,0.19160282,87347.0,87346.0,0.01144872]
[1745214981098,0.14240282,87347.0,87346.0,0.01144872]
[1745214981731,0.13171794,87347.0,87346.0,0.01144872]
[1745214981931,0.1103464,87347.0,87346.0,0.01144872]
[1745214982749,0.0320686,87351.0,87346.0,0.01144872]
[1745214982750,0.02503524,87351.0,87348.0,0.01144845]
[1745214982983,0.01068953,87351.0,87349.0,0.00228942]
[1745214983099,0.01068953,87351.0,87350.0,0.13574791]
[1745214983500,0.0471,87382.0,87350.0,0.13574791]
[1745214984183,0.05422314,87377.0,87351.0,0.34]
[1745214984339,0.05422314,87377.0,87351.0,0.45944791]
[1745214986035,0.05422314,87377.0,87354.0,0.36826088]
[1745214986161,0.05422314,87377.0,87355.0,0.34228895]
[1745214986368,0.05422314,87377.0,87355.0,0.34]
[1745214987669,0.05422314,87377.0,87356.0,0.00228896]
[1745214988093,0.0004229,87377.0,87356.0,0.00228896]
[1745214988544,0.0415229,87382.0,87357.0,0.0056]
[1745214988749,0.16097081,87382.0,87370.0,0.18413044]
[1745214988956,0.16097081,87382.0,87360.0,0.18413044]
[1745214989127,0.11944791,87382.0,87361.0,0.0022889]
[1745214989464,0.11944791,87382.0,87370.0,0.18413044]
[1745214989623,0.09185741,87385.0,87370.0,0.18413044]
[1745214990940,0.0491,87386.0,87370.0,0.18413044]
[1745214991136,0.0491,87386.0,87375.0,0.18413044]
[1745214991352,0.0491,87386.0,87370.0,0.001]
[1745214991553,0.0471,87385.0,87370.0,0.001]
[1745214991753,0.0471,87385.0,87370.0,0.18513044]
[1745214992491,0.0471,87385.0,87370.0,0.04387962]
[1745214992711,0.0471,87390.0,87371.0,0.0022887]
[1745214992909,0.0471,87390.0,87372.0,0.0056]
[1745214993120,0.0471,87390.0,87373.0,0.13864]
[1745214994473,0.0471,87390.0,87380.0,0.18413044]
[1745214994793,0.21560619,87394.0,87381.0,0.00228858]
[1745214995020,0.09615828,87394.0,87381.0,0.00228858]
[1745214995422,0.00055828,87394.0,87381.0,0.00228858]
[1745214996656,0.00055828,87394.0,87373.0,0.13864]
[1745214996947,0.00055828,87394.0,87384.0,0.18413044]
[1745215002789,0.00055828,87394.0,87382.0,0.97988]
[1745215002790,0.0935,87393.0,87382.0,0.97988]
[1745215003385,0.0934258,87393.0,87382.0,0.97988]
[1745215003705,0.09340704,87393.0,87382.0,0.97988]
[1745215003880,0.11944791,87392.0,87382.0,0.97988]
[1745215004094,0.01454085,87389.0,87382.0,0.97988]
[1745215004254,0.11944791,87388.0,87382.0,0.97988]
[1745215004503,0.047,87387.0,87382.0,0.97988]
[1745215004673,0.11944791,87386.0,87382.0,0.97988]
[1745215006582,0.0465,87385.0,87383.0,0.1386]
[1745215006809,0.0465,87383.0,87363.0,0.97972]
[1745215007018,0.11944791,87382.0,87364.0,0.1386]
[1745215007868,0.11944791,87382.0,87370.0,0.18413044]
[1745215009612,0.11944791,87382.0,87364.0,0.1386]
[1745215009813,0.11944791,87382.0,87370.0,0.18413044]
[1745215011483,0.11944791,87382.0,87364.0,0.1386]
[1745215011997,0.11944791,87382.0,87370.0,0.18413044]
[1745215013235,0.11244791,87382.0,87371.0,0.34]
[1745215014469,0.11244791,87382.0,87365.0,0.34]
[1745215014671,0.11244791,87382.0,87371.0,0.34]
[1745215018368,0.0465,87383.0,87372.0,0.00228885]
[1745215019060,0.0465,87383.0,87371.0,0.34]
[1745215021242,0.0395,87383.0,87371.0,0.34]
[1745215021806,0.0395,87383.0,87372.0,0.13352]
[1745215028657,0.0325,87383.0,87372.0,0.13352]
[1745215030814,0.0325,87383.0,87373.0,0.00228872]
[1745215031216,0.001,87386.0,87373.0,0.00228872]
[1745215031419,0.001,87386.0,87376.0,0.18413044]
[1745215031644,0.001,87386.0,87377.0,0.00228852]
[1745215033655,0.001,87386.0,87377.0,0.34228852]
[1745215033873,0.001,87386.0,87377.0,0.45944791]
[1745215034971,0.001,87386.0,87379.0,0.34]
[1745215035179,0.001,87386.0,87381.0,0.34]
[1745215035392,0.001,87386.0,87382.0,0.00228825]
[1745215035605,0.001,87386.0,87383.0,0.00228823]
[1745215035846,0.001,87386.0,87384.0,0.34]
[1745215036023,0.001,87386.0,87385.0,0.00228816]
[1745215036784,0.001,87386.0,87385.0,0.45944791]
[1745215043581,0.04448108,87403.0,87386.0,0.34]
[1745215043778,0.04448108,87403.0,87394.0,0.34]
[1745215043967,0.04448108,87403.0,87396.0,0.34]
[1745215044169,0.04448108,87403.0,87397.0,0.00228798]
[1745215044575,0.04448108,87403.0,87396.0,0.34]
[1745215044576,0.04448108,87403.0,87396.0,0.14264054]
[1745215044774,0.04448108,87403.0,87397.0,0.00228797]
[1745215045015,0.04448108,87403.0,87396.0,0.00228799]
[1745215047209,0.04448108,87403.0,87395.0,0.13348]
[1745215048833,0.04448108,87403.0,87396.0,0.34228797]
[1745215049040,0.04448108,87403.0,87396.0,0.34]
[1745215049264,0.04448108,87403.0,87397.0,0.00228797]
[1745215049684,0.04448108,87403.0,87397.0,0.00228798]
[1745215050089,0.04448108,87403.0,87396.0,0.34]
[1745215051124,0.03748108,87403.0,87396.0,0.34]
[1745215053885,0.03748108,87403.0,87397.0,0.97944]
[1745215058799,0.03048108,87403.0,87397.0,0.97944]
[1745215059576,0.03048108,87403.0,87398.0,0.00228796]
[1745215059911,0.0469,87416.0,87398.0,0.00228796]
[1745215060110,0.0469,87416.0,87400.0,0.18099428]
[1745215060309,0.0469,87416.0,87401.0,0.00228789]
[1745215060518,0.0469,87416.0,87400.0,0.18099428]
[1745215061141,0.0469,87416.0,87401.0,1.10816]
[1745215061806,0.0469,87416.0,87401.0,1.14549915]
[1745215062147,0.0453,87409.0,87401.0,1.14549915]
[1745215064904,0.0453,87409.0,87390.0,0.18099428]
[1745215065106,0.0453,87409.0,87391.0,0.11944791]
[1745215065323,0.0453,87409.0,87392.0,1.10812]
[1745215066577,0.0383,87409.0,87392.0,1.10812]
[1745215066934,0.0469,87408.0,87392.0,1.10812]
[1745215071427,0.0468,87407.0,87392.0,0.9794]
[1745215071628,0.09185741,87397.0,87393.0,0.12404]
[1745215071825,0.11944791,87396.0,87392.0,0.9794]
[1745215072027,0.11944791,87396.0,87393.0,0.12404]
[1745215072225,0.0946,87395.0,87394.0,0.12404]
[1745215072985,0.11944791,87396.0,87392.0,0.9794]
[1745215073190,0.0478,87394.0,87393.0,0.12404]
[1745215073385,0.0946,87394.0,87393.0,0.12404]
[1745215074149,0.0876,87394.0,87393.0,0.12404]
[1745215075670,0.0408,87394.0,87392.0,0.9794]
[1745215076048,0.0468,87393.0,87392.0,0.9794]
[1745215076229,0.04908798,87393.0,87392.0,0.9794]
[1745215076427,0.04908798,87393.0,87392.0,1.10344]
[1745215077284,0.09688798,87393.0,87392.0,1.10344]
[1745215077491,0.21633589,87393.0,87392.0,1.10344]
[1745215078847,0.21404791,87393.0,87392.0,1.10344]
[1745215081975,0.20704791,87393.0,87392.0,1.10344]
[1745215086588,0.20704791,87393.0,87392.0,0.12408]
[1745215089708,0.20004791,87393.0,87392.0,0.12408]
[1745215097252,0.19304791,87393.0,87392.0,0.12408]
[1745215098111,0.16724791,87393.0,87392.0,0.1198]
[1745215100365,0.21514791,87393.0,87392.0,0.1198]
[1745215101724,0.21614791,87393.0,87392.0,0.1198]
[1745215105119,0.20914791,87393.0,87381.0,0.03741298]
[1745215105335,0.18114788,87391.0,87382.0,0.1198]
[1745215111164,0.30059579,87391.0,87382.0,0.1198]
[1745215111359,0.00228798,87390.0,87382.0,0.1198]
[1745215111579,0.00228798,87390.0,87383.0,0.1198]
[1745215112425,0.16734791,87389.0,87383.0,0.1198]
[1745215112598,0.00228798,87388.0,87384.0,0.1198]
[1745215112803,0.0499,87386.0,87384.0,0.1198]
[1745215113182,0.01454085,87384.0,87380.0,0.97968]
[1745215113373,0.57283589,87383.0,87381.0,0.1198]
[1745215113580,0.57054791,87383.0,87381.0,0.1198]
[1745215113782,0.00228798,87382.0,87381.0,0.1198]
[1745215113986,0.12173589,87382.0,87381.0,0.1198]
[1745215114203,0.21953589,87382.0,87381.0,0.1198]
[1745215114404,0.11234085,87381.0,87380.0,0.97968]
[1745215114611,0.23178876,87381.0,87380.0,0.97968]
[1745215114736,0.23178876,87381.0,87380.0,1.09948]
[1745215115131,0.24248707,87381.0,87380.0,1.09948]
[1745215116459,0.23178876,87381.0,87380.0,1.09948]
[1745215117682,0.63498876,87381.0,87380.0,0.97968]
[1745215117894,0.63498876,87381.0,87380.0,1.09948]
[1745215118321,0.62044791,87381.0,87380.0,1.09948]
[1745215118946,0.63498876,87381.0,87380.0,1.09948]
[1745215119774,0.62798876,87381.0,87380.0,1.09948]
[1745215121967,0.61344791,87381.0,87380.0,1.09948]
[1745215122167,0.62798876,87381.0,87380.0,1.09948]
[1745215123036,0.62798876,87381.0,87380.0,0.97968]
[1745215123201,0.62798876,87381.0,87380.0,1.09492]
[1745215127406,0.62098876,87381.0,87380.0,1.09492]
[1745215131217,0.62098876,87381.0,87380.0,0.97968]
[1745215132592,0.63168707,87381.0,87380.0,0.97968]
[1745215135428,0.63168707,87381.0,87372.0,0.11524]
[1745215135429,0.06034085,87380.0,87372.0,0.11524]
[1745215135623,0.01454085,87378.0,87372.0,0.11524]
[1745215135858,0.01454085,87374.0,87372.0,0.11524]
[1745215136054,0.0458,87375.0,87372.0,0.11524]
[1745215136055,0.13627674,87373.0,87372.0,0.11524]
[1745215136301,0.18287674,87373.0,87372.0,0.11524]
[1745215137923,0.20225748,87373.0,87372.0,0.11524]
[1745215140146,0.19525748,87373.0,87372.0,0.11524]
[1745215140349,0.1929695,87373.0,87372.0,0.11524]
[1745215141145,0.5961695,87373.0,87372.0,0.11524]
[1745215143404,0.61751984,87373.0,87372.0,0.11524]
[1745215144594,0.60297899,87373.0,87372.0,0.11524]
[1745215144780,0.61751984,87373.0,87372.0,0.11524]
[1745215147851,0.61051984,87373.0,87372.0,0.11524]
[1745215147995,0.56391984,87373.0,87372.0,0.11524]
[1745215148818,0.5425695,87373.0,87372.0,0.11524]
[1745215151405,0.56397476,87373.0,87372.0,0.11524]
[1745215155689,0.55697476,87373.0,87372.0,0.11524]
[1745215160323,0.54243391,87373.0,87372.0,0.11524]
[1745215160667,0.52102865,87373.0,87372.0,0.11524]
[1745215160862,0.51234622,87373.0,87350.0,0.00300658]
[1745215161067,0.50164791,87373.0,87351.0,0.11524]
[1745215161991,0.01070156,87372.0,87351.0,0.11524]
[1745215162201,0.11944791,87371.0,87351.0,0.11524]
[1745215163191,0.11944791,87371.0,87351.0,0.11624]
[1745215163495,0.41194753,87373.0,87351.0,0.11624]
[1745215163638,0.11944791,87372.0,87351.0,0.11624]
[1745215165290,0.11944791,87372.0,87352.0,0.97996]
[1745215168530,0.0492,87371.0,87352.0,0.97996]
[1745215170998,0.0422,87371.0,87352.0,0.97996]
[1745215174020,0.046,87370.0,87352.0,0.97996]
[1745215175188,0.036,87370.0,87353.0,0.11524]
[1745215175944,0.21714788,87370.0,87353.0,0.11524]
[1745215176148,0.036,87370.0,87352.0,0.97996]
[1745215176354,0.036,87370.0,87353.0,0.11524]
[1745215176784,0.21714788,87370.0,87353.0,0.11524]
[1745215178688,0.21014788,87370.0,87353.0,0.11524]
[1745215180156,0.029,87370.0,87353.0,0.11524]
[1745215185608,0.029,87370.0,87353.0,0.11524]
[1745215186410,0.022,87370.0,87353.0,0.11524]
[1745215187322,0.0463,87369.0,87353.0,0.11524]
[1745215194101,0.0393,87369.0,87353.0,0.11524]
[1745215199932,0.0393,87369.0,87354.0,0.11512]
[1745215201878,0.0323,87369.0,87354.0,0.11512]
[1745215203411,0.0323,87369.0,87359.0,0.18114788]
[1745215203574,0.0323,87369.0,87355.0,0.23456791]
[1745215203932,0.0323,87369.0,87354.0,0.001]
[1745215204151,0.0323,87369.0,87355.0,0.11512]
[1745215204345,0.0323,87369.0,87354.0,0.001]
[1745215204599,0.0323,87369.0,87355.0,0.11512]
[1745215205009,0.0323,87369.0,87356.0,0.11512]
[1745215205352,0.0495,87367.0,87356.0,0.11512]
[1745215207311,0.022,87370.0,87356.0,0.11512]
[1745215207510,0.4527,87373.0,87356.0,0.11512]
[1745215207672,0.05940263,87378.0,87360.0,0.18114788]
[1745215207884,0.41390263,87392.0,87368.0,0.18114788]
[1745215208091,0.0495,87388.0,87380.0,0.18114788]
[1745215208443,0.01070263,87392.0,87381.0,0.23456791]
[1745215208576,0.01070263,87392.0,87370.0,0.18114788]
[1745215208774,0.01070263,87392.0,87371.0,0.23456791]
[1745215209005,0.05236037,87403.0,87372.0,0.11512]
[1745215209160,0.05236037,87403.0,87373.0,0.11944791]
[1745215209576,0.04263444,87403.0,87380.0,0.18114788]
[1745215209778,0.04263444,87403.0,87381.0,0.11944791]
[1745215210779,0.04263444,87403.0,87382.0,0.34]
[1745215211007,0.04263444,87403.0,87382.0,0.45944791]
[1745215217480,0.03563444,87403.0,87382.0,0.45944791]
[1745215220513,0.03563444,87403.0,87383.0,0.11944791]
[1745215223803,0.03563444,87403.0,87384.0,0.34]
[1745215223974,0.03563444,87403.0,87386.0,0.34]
[1745215224187,0.03563444,87403.0,87388.0,0.34]
[1745215225109,0.02863444,87403.0,87388.0,0.34]
[1745215227794,0.02863444,87403.0,87390.0,0.18114788]
[1745215227996,0.02863444,87403.0,87388.0,0.11944791]
[1745215229743,0.02863444,87403.0,87390.0,0.18114788]
[1745215230080,0.0008454,87404.0,87390.0,0.18114788]
[1745215230081,0.0008454,87404.0,87391.0,0.11944791]
[1745215230203,0.0008454,87404.0,87394.0,0.18114788]
[1745215230397,0.0008454,87404.0,87395.0,1.21388791]
[1745215230814,0.0008454,87404.0,87396.0,0.34]
[1745215231009,0.0008454,87404.0,87398.0,0.34]
[1745215231269,0.0008454,87404.0,87400.0,0.34]
[1745215231443,0.0008454,87404.0,87402.0,0.34]
[1745215231657,0.0008454,87404.0,87403.0,0.45944791]
[1745215233449,0.0008454,87404.0,87403.0,0.49817717]
[1745215233656,0.0486454,87404.0,87403.0,0.37872926]
[1745215237964,0.0008454,87405.0,87403.0,0.03872926]
[1745215238180,0.0008454,87405.0,87395.0,1.27658788]
[1745215238382,0.0008454,87405.0,87396.0,0.11944791]
[1745215238596,0.0008454,87405.0,87395.0,1.13487009]
[1745215238810,0.0008454,87405.0,87395.0,1.01995009]
[1745215239022,0.0008454,87405.0,87396.0,0.11492]
[1745215239165,0.048,87404.0,87396.0,0.11492]
[1745215243481,0.048,87404.0,87397.0,0.34]
[1745215244392,0.0468,87403.0,87395.0,1.01995009]
[1745215244594,0.0468,87401.0,87398.0,0.11476]
[1745215244812,0.00286048,87400.0,87398.0,0.11476]
[1745215245041,0.0468,87399.0,87398.0,0.11476]
[1745215245576,0.0398,87399.0,87398.0,0.11476]
[1745215251929,0.0408,87399.0,87398.0,0.11476]
[1745215253245,0.0338,87399.0,87398.0,0.11476]
[1745215261067,0.0268,87399.0,87398.0,0.11476]
[1745215263580,0.001,87399.0,87398.0,0.11476]
[1745215264371,0.001,87399.0,87398.0,1.09424]
[1745215266984,0.001,87399.0,87398.0,0.97948]
[1745215267140,0.001,87399.0,87398.0,1.09424]
[1745215272410,0.0484,87399.0,87398.0,0.97948]
[1745215272618,0.0484,87399.0,87398.0,1.09424]
[1745215273663,0.0424,87399.0,87398.0,1.09424]
[1745215275380,0.0008454,87405.0,87398.0,1.09424]
[1745215276802,0.0474,87404.0,87398.0,1.09424]
[1745215277911,8.667e-05,87418.0,87398.0,1.09424]
[1745215278203,0.00294671,87418.0,87398.0,1.09424]
[1745215279961,0.18390911,87410.0,87398.0,1.09424]
[1745215280392,0.00286012,87409.0,87398.0,1.09424]
[1745215280839,0.0921,87408.0,87398.0,1.09424]
[1745215281159,0.00286021,87407.0,87398.0,1.09424]
[1745215281385,0.08796021,87408.0,87398.0,1.09424]
[1745215289069,0.08096021,87408.0,87398.0,1.09424]
[1745215290884,0.08096021,87408.0,87399.0,0.1146]
[1745215292293,0.08096021,87408.0,87398.0,0.97948]
[1745215292492,0.08096021,87408.0,87399.0,0.1146]
[1745215296605,0.08096021,87408.0,87400.0,0.9794]
[1745215296922,0.07396021,87408.0,87400.0,0.9794]
[1745215297528,0.4162,87417.0,87401.0,0.00228818]
[1745215298740,0.4162,87417.0,87400.0,0.9794]
[1745215299972,0.0489,87416.0,87400.0,0.9794]
[1745215303792,0.18106528,87410.0,87400.0,0.9794]
[1745215304175,0.0961,87409.0,87400.0,0.9794]
[1745215304504,0.0891,87409.0,87400.0,0.9794]
[1745215305105,0.17016528,87410.0,87400.0,0.9794]
[1745215308071,0.0961,87409.0,87400.0,0.9794]
[1745215312941,0.0891,87409.0,87400.0,0.9794]
[1745215313164,0.0402,87409.0,87400.0,0.9794]
[1745215316797,0.0402,87409.0,87401.0,0.1144]
[1745215317931,0.18106528,87410.0,87401.0,0.1144]
[1745215318160,0.4162,87417.0,87401.0,0.1144]
[1745215318531,0.11944791,87416.0,87401.0,0.1144]
[1745215320860,0.4162,87417.0,87401.0,0.1144]
[1745215321060,0.53564791,87417.0,87401.0,0.1144]
[1745215323895,0.53564791,87417.0,87402.0,0.0475]
[1745215324440,0.4162,87417.0,87402.0,0.0475]
[1745215326042,8.667e-05,87418.0,87402.0,0.0475]
[1745215326460,0.18106528,87412.0,87401.0,0.1144]
[1745215328538,0.17406528,87412.0,87401.0,0.1144]
[1745215334034,0.17406528,87412.0,87402.0,0.97944]
[1745215334667,0.18106528,87412.0,87402.0,0.97944]
[1745215335105,8.667e-05,87418.0,87402.0,0.97944]
[1745215335309,0.11953458,87418.0,87402.0,0.97944]
[1745215335582,0.18106528,87412.0,87402.0,0.97944]
[1745215335810,0.11953458,87418.0,87402.0,0.97944]
[1745215336186,0.11253458,87418.0,87402.0,0.97944]
[1745215337451,0.0004224,87421.0,87402.0,0.97944]
[1745215337670,0.0004224,87421.0,87403.0,0.04948807]
[1745215337871,0.0004224,87421.0,87404.0,0.0467]
[1745215338069,0.0004224,87421.0,87405.0,0.00228782]
[1745215339320,0.0004224,87421.0,87406.0,0.11416]
[1745215339474,0.0004224,87421.0,87407.0,0.00228782]
[1745215340680,0.00052068,87421.0,87407.0,0.00228782]
[1745215341282,0.18106528,87420.0,87407.0,0.00228782]
[1745215341618,0.18106528,87420.0,87408.0,0.11416]
[1745215344141,0.18106528,87420.0,87408.0,1.09352]
[1745215345250,0.11944791,87419.0,87408.0,0.97936]
[1745215345478,0.16704791,87419.0,87408.0,0.97936]
[1745215345678,0.16804791,87419.0,87409.0,0.11416]
[1745215349438,0.4162,87418.0,87409.0,0.11416]
[1745215349639,0.11944791,87417.0,87409.0,0.11416]
[1745215351579,0.11244791,87417.0,87409.0,0.11416]
[1745215353388,0.01068223,87416.0,87409.0,0.11416]
[1745215353531,0.11944791,87415.0,87409.0,0.11416]
[1745215359144,0.11944791,87415.0,87410.0,0.11416]
[1745215359287,0.11244791,87415.0,87410.0,0.11416]
[1745215360743,0.01068223,87414.0,87410.0,0.11416]
[1745215360949,0.11944791,87413.0,87410.0,0.11416]
[1745215361747,0.13013014,87413.0,87410.0,0.11416]
[1745215363808,0.11944791,87413.0,87410.0,0.11416]
[1745215366706,0.11924199,87413.0,87410.0,0.11416]
[1745215367141,0.11224199,87413.0,87410.0,0.11416]
[1745215371655,0.01068223,87412.0,87410.0,0.11416]
[1745215372814,0.01068223,87411.0,87410.0,0.11416]
[1745215373772,0.06028223,87411.0,87410.0,0.11392]
[1745215374817,0.05328223,87411.0,87410.0,0.11392]
[1745215375027,0.00368223,87411.0,87410.0,0.11492]
[1745215375261,0.00801189,87417.0,87410.0,0.11492]
[1745215375402,0.18106528,87440.0,87410.0,0.11492]
[1745215375403,0.00801189,87431.0,87411.0,0.00228784]
[1745215375649,0.00801189,87431.0,87420.0,0.18106528]
[1745215375808,0.00801189,87431.0,87411.0,0.00228784]
[1745215376411,0.0496,87437.0,87411.0,0.00228784]
[1745215376626,0.0496,87437.0,87412.0,0.075]
[1745215376847,0.0496,87437.0,87413.0,0.00228756]
[1745215377221,0.0496,87437.0,87414.0,0.00228756]
[1745215377423,0.0496,87437.0,87412.0,0.075]
[1745215380933,0.0496,87437.0,87413.0,0.00228756]
[1745215381424,0.18106528,87430.0,87413.0,0.00228756]
[1745215382591,0.17406528,87430.0,87413.0,0.00228756]
[1745215383365,0.0496,87437.0,87413.0,0.00228756]
[1745215383538,0.0496,87437.0,87414.0,0.11944791]
[1745215383744,0.4162,87443.0,87416.0,0.0433]
[1745215383948,0.4162,87443.0,87417.0,0.12173512]
[1745215384357,0.4162,87443.0,87418.0,0.34]
[1745215384551,0.4162,87443.0,87420.0,0.34]
[1745215384754,0.4162,87443.0,87422.0,0.34]
[1745215384932,0.4162,87443.0,87424.0,0.34]
[1745215385127,0.4162,87443.0,87425.0,0.11944791]
[1745215386610,0.317045,87443.0,87425.0,0.11944791]
[1745215387564,0.0500226,87444.0,87425.0,0.11944791]
[1745215388449,0.317045,87457.0,87425.0,0.11944791]
[1745215388450,0.0004225,87452.0,87443.0,0.09185741]
[1745215388649,0.0004225,87452.0,87448.0,0.05]
[1745215388894,0.0500448,87493.0,87449.0,0.00228638]
[1745215389093,0.18106528,87480.0,87444.0,1.09312]
[1745215389293,0.18106528,87480.0,87445.0,0.11388]
[1745215389519,0.18106528,87480.0,87444.0,0.9792]
[1745215389520,0.18106528,87470.0,87446.0,0.11388]
[1745215389753,0.00087482,87456.0,87446.0,0.11944791]
[1745215389904,0.00087482,87456.0,87447.0,0.11388]
[1745215390113,0.1753626,87470.0,87448.0,0.11944791]
[1745215390316,0.18120086,87470.0,87449.0,0.11388]
[1745215390669,0.00013558,87470.0,87450.0,0.11944791]
[1745215391006,0.00013558,87470.0,87451.0,0.00228647]
[1745215391370,0.00013558,87470.0,87452.0,0.11944791]
[1745215391596,0.00013558,87470.0,87453.0,0.04558622]
[1745215391718,0.00013558,87470.0,87454.0,0.23332791]
[1745215391919,0.00013558,87470.0,87455.0,0.34228622]
[1745215392119,0.00013558,87470.0,87457.0,0.34]
[1745215392320,0.00013558,87470.0,87459.0,0.34]
[1745215392539,0.00013558,87470.0,87460.0,0.12173404]
[1745215393161,0.00013558,87470.0,87461.0,0.3709]
[1745215393365,0.00013558,87470.0,87463.0,0.34]
[1745215393521,0.0004225,87505.0,87461.0,0.0309]
[1745215393522,0.0460225,87505.0,87465.0,0.34]
[1745215393749,0.0004225,87505.0,87481.0,0.34]
[1745215393963,0.0004224,87491.0,87482.0,0.23332791]
[1745215394160,0.0004224,87491.0,87482.0,0.11944791]
[1745215394424,0.0004224,87491.0,87483.0,0.11388]
[1745215394618,0.0004224,87491.0,87484.0,0.1217334]
[1745215395118,0.0004224,87491.0,87484.0,0.11944791]
[1745215395328,0.0004224,87491.0,87485.0,0.11384]
[1745215395569,0.0004224,87491.0,87486.0,0.23328791]
[1745215395685,0.0004224,87491.0,87487.0,0.11364]
[1745215396111,0.08655079,87510.0,87487.0,0.11364]
[1745215396316,0.08655079,87510.0,87486.0,0.11944791]
[1745215396317,0.09185741,87506.0,87486.0,0.11944791]
[1745215396520,0.09185741,87506.0,87488.0,0.11364]
[1745215396719,0.09185741,87506.0,87489.0,0.9788]
[1745215397729,0.09199294,87506.0,87489.0,0.9788]
[1745215397930,0.08499294,87506.0,87489.0,0.9788]
[1745215398827,0.00013553,87506.0,87489.0,0.9788]
[1745215399606,0.00013553,87506.0,87490.0,0.1217335]
[1745215401033,0.00013553,87506.0,87490.0,0.11944791]
[1745215401925,0.00013553,87506.0,87489.0,0.9788]
[1745215402130,0.00013553,87506.0,87472.0,0.0433]
[1745215402466,0.00013553,87506.0,87473.0,0.11944791]
[1745215402597,0.18359379,87500.0,87474.0,1.31856]
[1745215402965,0.18359379,87484.0,87442.0,0.4118]
[1745215403110,0.3030417,87484.0,87475.0,0.97856]
[1745215403320,0.0492,87483.0,87452.0,0.11944791]
[1745215403520,0.18359379,87470.0,87452.0,0.11944791]
[1745215403716,0.0492,87483.0,87453.0,1.09212]
[1745215403943,0.16864791,87483.0,87454.0,1.21156791]
[1745215404158,0.16864791,87483.0,87454.0,0.11944791]
[1745215404384,0.16864791,87483.0,87455.0,1.09212]
[1745215404588,0.16864791,87483.0,87455.0,0.11944791]
[1745215404761,0.16864791,87483.0,87456.0,1.31852]
[1745215404964,0.16864791,87483.0,87456.0,1.43212]
[1745215405519,0.16164791,87483.0,87456.0,1.43212]
[1745215406252,0.0422,87483.0,87457.0,0.1217343]